bitfinex-derivatives/quotes_ETHF0:USTF0_20240917
["timestamp","ask_amount","ask_price","bid_price","bid_amount"]
[1726598318896,0.81414,2363.2,2363.1,0.42306]
[1726598319088,6.34644577,2363.2,2362.7,0.4151]
[1726598319290,2.19896527,2363.0,2362.9,0.42308]
[1726598319491,2.62203527,2363.1,2363.0,0.42308]
[1726598319697,0.42307,2363.1,2363.0,0.42308]
[1726598319992,6.34644577,2363.2,2363.1,0.42306]
[1726598319993,6.76949577,2363.2,2363.1,0.42306]
[1726598321088,0.42307,2363.1,2363.0,0.42306]
[1726598321384,2.62144434,2363.1,2363.0,0.42306]
[1726598323288,2.19838434,2363.1,2363.0,0.42306]
[1726598323483,2.62144434,2363.1,2363.0,0.42306]
[1726598323897,0.42306,2363.1,2363.0,0.42306]
[1726598324097,3.01253434,2363.2,2363.1,0.42306]
[1726598325185,6.22033434,2363.2,2363.1,0.42306]
[1726598325588,2.58948434,2363.2,2363.1,0.42306]
[1726598325790,2.19838434,2363.2,2363.1,0.42306]
[1726598326183,0.85113,2363.3,2363.2,0.42304]
[1726598326398,3.04844615,2363.3,2363.2,0.42304]
[1726598326795,0.4281,2363.3,2363.2,0.42304]
[1726598326998,0.85113,2363.3,2363.2,0.42304]
[1726598327300,3.04836889,2363.3,2363.2,0.42304]
[1726598327595,2.62529913,2363.3,2362.9,4.35774]
[1726598327791,1.64791018,2363.1,2362.7,4.77293]
[1726598327993,1.64791018,2363.1,2362.9,0.4231]
[1726598327994,2.06841018,2363.0,2362.9,0.4231]
[1726598328300,2.47301018,2363.0,2362.9,0.4231]
[1726598328493,1.64791018,2363.0,2362.9,0.4231]
[1726598328690,1.64791018,2363.0,2362.9,3.7231]
[1726598328895,1.64791018,2363.0,2362.9,0.4231]
[1726598331097,1.64791018,2363.1,2363.0,0.42308]
[1726598331304,3.44535913,2363.2,2363.1,0.42306]
[1726598332398,3.02229913,2363.2,2363.1,0.42306]
[1726598334306,3.02229913,2363.2,2363.1,5.83838]
[1726598334307,2.19719913,2363.2,2363.1,5.83838]
[1726598334514,1.64762974,2363.3,2363.2,1.05762]
[1726598334802,1.64762974,2363.3,2363.2,1.48066]
[1726598335002,1.64762974,2363.3,2363.2,1.88986]
[1726598335404,1.64762974,2363.3,2363.2,15.45528]
[1726598335610,1.64762974,2363.3,2363.2,19.68648]
[1726598335901,1.64762974,2363.4,2363.3,1.4806]
[1726598336403,2.19719913,2363.5,2363.4,0.42301]
[1726598337096,2.19719913,2363.5,2363.4,1.48054]
[1726598337299,2.74754577,2363.6,2363.5,0.42299]
[1726598338303,0.83366,2363.7,2363.6,0.42297]
[1726598339605,4.13071492,2363.7,2363.6,0.42297]
[1726598339907,0.83366,2363.7,2363.6,0.42297]
[1726598340296,4.13071492,2363.7,2363.6,0.42297]
[1726598340697,0.42299,2363.5,2363.2,4.67461]
[1726598340898,2.20310739,2363.3,2363.2,1.48065]
[1726598341097,2.75380725,2363.3,2363.2,1.48065]
[1726598341310,2.75380725,2363.3,2363.2,2.04245994]
[1726598341606,3.54968319,2363.4,2363.3,0.42303]
[1726598341801,0.7942,2363.4,2363.3,0.42303]
[1726598350906,1.21721,2363.4,2363.3,0.42303]
[1726598351106,0.7942,2363.4,2363.1,1.05766]
[1726598351301,0.3958,2363.3,2363.2,0.98486897]
[1726598351505,0.3958,2363.3,2363.2,0.98487445]
[1726598352110,0.3958,2363.3,2363.2,0.9848698]
[1726598354210,8.11180408,2363.6,2363.3,1.05757]
[1726598354211,3.29705492,2363.6,2363.3,1.05757]
[1726598354409,3.29705492,2363.6,2363.4,0.42301]
[1726598354410,0.4085,2363.5,2363.4,0.42301]
[1726598356915,0.8315,2363.5,2363.0,0.60080458]
[1726598357220,2.20539615,2363.1,2363.0,1.02388458]
[1726598357417,2.20539615,2363.1,2363.0,6.11580157]
[1726598357617,2.75674518,2363.1,2363.0,0.56181599]
[1726598357819,5.17883,2363.2,2362.5,4.26572]
[1726598358014,2.75523784,2362.9,2362.8,0.42311]
[1726598358212,2.75523784,2362.9,2362.8,0.98499542]
[1726598359224,0.84249,2363.0,2362.8,0.42311]
[1726598359520,0.84249,2363.0,2362.8,0.98500827]
[1726598359714,0.84249,2363.0,2362.9,0.4231]
[1726598360015,0.42312,2362.8,2362.4,2.07605551]
[1726598360222,2.20387291,2362.6,2362.5,1.88419419]
[1726598360414,2.20387291,2362.6,2362.5,9.41699419]
[1726598360812,3.59094114,2362.7,2362.6,0.42315]
[1726598361013,3.59094114,2362.7,2362.6,0.98508238]
[1726598362919,3.59094114,2362.7,2362.6,0.9851018]
[1726598363820,3.59094114,2362.7,2362.6,0.98510808]
[1726598364121,3.59094114,2362.7,2362.6,0.42315]
[1726598365821,3.59094114,2362.7,2362.2,4.26584]
[1726598366124,3.59094114,2362.7,2361.9,3.53897167]
[1726598366125,2.75484114,2362.4,2361.9,4.97245551]
[1726598366321,0.8415,2362.3,2362.2,0.42322]
[1726598366522,3.59634114,2362.3,2362.2,0.42322]
[1726598366718,0.8415,2362.3,2362.2,0.42322]
[1726598367221,3.04261874,2362.3,2362.2,0.42322]
[1726598367918,2.20111874,2362.3,2362.2,3.72322]
[1726598368122,2.20111874,2362.3,2362.2,4.78129]
[1726598368425,2.20111874,2362.3,2362.2,4.15312]
[1726598368617,2.20111874,2362.3,2362.2,3.72322]
[1726598368815,2.20111874,2362.3,2362.2,0.42322]
[1726598369625,2.20033893,2362.3,2362.2,3.72322]
[1726598369929,2.20031832,2362.3,2362.2,3.72322]
[1726598370426,5.96264114,2362.5,2362.4,0.42319]
[1726598370626,5.96264114,2362.5,2362.3,0.4232]
[1726598370826,3.17804114,2362.4,2362.2,0.42322]
[1726598371018,0.42323,2362.2,2361.8,6.34629551]
[1726598371219,2.46798166,2362.1,2362.0,0.42325]
[1726598371430,0.8183,2362.1,2362.0,0.42325]
[1726598372024,2.4675242,2362.1,2362.0,0.42325]
[1726598372526,2.4675242,2362.1,2362.0,3.72325]
[1726598372918,2.4675242,2362.1,2362.0,0.42325]
[1726598373429,2.46639084,2362.1,2362.0,0.42325]
[1726598375114,2.46639084,2362.1,2362.0,1.48141]
[1726598375319,2.75484114,2362.4,2362.1,0.42324]
[1726598375320,1.64809084,2362.2,2362.1,0.42324]
[1726598375721,0.8376,2362.3,2362.2,0.42322]
[1726598376120,2.48497098,2362.3,2362.2,0.42322]
[1726598376319,2.48466827,2362.3,2362.2,0.42322]
[1726598376521,3.03728194,2362.3,2362.2,0.42322]
[1726598376929,7.67468194,2362.3,2362.1,0.42323]
[1726598377129,0.42322,2362.2,2362.0,0.42324]
[1726598377338,1.64652523,2362.1,2362.0,0.42324]
[1726598377721,1.64652523,2362.1,2361.8,3.2078]
[1726598377722,2.06976766,2362.1,2361.9,0.42327]
[1726598377936,1.64651766,2362.0,2361.9,0.42327]
[1726598379121,1.64651766,2362.1,2362.0,0.42326]
[1726598379422,2.06975766,2362.1,2361.9,0.42326]
[1726598379628,2.06975766,2362.1,2361.9,0.42327]
[1726598380223,5.40315031,2362.2,2361.8,0.42328]
[1726598380224,1.64651766,2362.0,2361.8,0.42328]
[1726598380430,0.7963,2361.9,2361.8,0.42328]
[1726598380636,1.2059,2361.9,2361.8,0.42328]
[1726598381135,1.2059,2361.9,2361.8,3.72328]
[1726598385041,1.2059,2361.9,2361.8,0.42328]
[1726598385737,0.4072,2361.9,2361.8,0.42328]
[1726598389537,0.4072,2361.9,2361.8,1.48153]
[1726598391642,0.4072,2361.9,2361.8,0.42328]
[1726598394540,0.4072,2361.9,2361.8,1.48153]
[1726598395340,0.4072,2361.9,2361.8,0.42328]
[1726598399630,2.05371766,2361.9,2361.8,0.42328]
[1726598400744,0.83048,2361.9,2361.8,0.42328]
[1726598400947,0.4233,2361.8,2361.7,0.4233]
[1726598401241,0.4233,2361.8,2361.2,1.05848]
[1726598401242,1.05829,2361.7,2361.2,1.05848]
[1726598401443,1.05829,2361.7,2361.4,0.42336]
[1726598401444,2.07208431,2361.5,2361.4,0.42336]
[1726598401645,1.64872431,2361.5,2361.4,0.42336]
[1726598401953,2.49120479,2361.5,2361.4,0.42336]
[1726598402137,10.66063479,2361.5,2360.9,4.26645]
[1726598402339,2.19829908,2361.1,2361.0,0.42344]
[1726598402544,2.19829908,2361.2,2361.1,0.42342]
[1726598402840,6.38604114,2361.3,2361.1,0.42342]
[1726598403161,2.62158066,2361.2,2361.0,0.42343]
[1726598403344,2.62160066,2361.1,2361.0,0.42343]
[1726598403646,2.19818066,2361.1,2361.0,0.42344]
[1726598403955,2.19818066,2361.1,2361.0,3.72344]
[1726598403956,1.64957117,2361.1,2361.0,3.72344]
[1726598404847,2.19818066,2361.2,2361.1,0.42342]
[1726598405845,6.38603114,2361.3,2361.1,0.42342]
[1726598406242,2.20034559,2361.2,2361.1,0.4234]
[1726598406940,1.65044954,2361.2,2361.1,0.4234]
[1726598407146,1.65044954,2361.2,2361.0,3.3]
[1726598407147,2.20034559,2361.3,2361.2,0.4234]
[1726598408246,2.20034559,2361.3,2361.2,7.9586]
[1726598408447,2.20034559,2361.5,2361.4,0.42337]
[1726598408751,2.20034559,2361.5,2361.4,3.72337]
[1726598408944,2.20034559,2361.5,2361.4,7.95777]
[1726598409542,1.0585,2361.3,2360.9,0.42345]
[1726598409751,1.71365,2361.0,2360.6,0.404]
[1726598409947,1.2902,2360.8,2360.7,0.42349]
[1726598411139,1.2902,2360.8,2360.2,3.3]
[1726598411344,1.2902,2360.8,2360.4,0.42355]
[1726598411345,1.2902,2360.5,2360.4,0.42355]
[1726598412651,3.36459466,2360.5,2360.3,0.42356]
[1726598412950,2.94105466,2360.4,2360.3,0.42356]
[1726598413939,1.65085466,2360.5,2360.4,0.42355]
[1726598414337,3.33105466,2360.5,2360.4,0.42355]
[1726598414547,3.33105466,2360.5,2360.1,0.404]
[1726598414853,2.04085466,2360.5,2360.4,0.42355]
[1726598415048,3.33105466,2360.5,2360.4,0.42355]
[1726598416148,1.6802,2360.5,2360.4,0.42355]
[1726598416346,3.33105466,2360.5,2360.4,0.42355]
[1726598416950,3.74565466,2360.5,2360.4,0.42355]
[1726598417149,2.0948,2360.5,2360.4,0.42355]
[1726598418848,1.7048,2360.5,2360.4,0.42355]
[1726598419247,1.65085466,2360.8,2360.4,7.5368]
[1726598419448,1.2902,2360.7,2360.5,1.05883]
[1726598419751,1.2902,2360.7,2360.6,0.42351]
[1726598423152,1.2902,2360.7,2360.6,1.48229]
[1726598423555,1.2902,2360.7,2360.6,0.42351]
[1726598423853,1.2902,2360.7,2360.6,1.48229]
[1726598424057,1.2902,2360.7,2360.6,0.42351]
[1726598424955,3.636,2360.9,2360.8,0.42347]
[1726598425451,4.9262,2360.9,2360.8,0.42347]
[1726598427049,1.7184,2360.9,2360.8,0.42347]
[1726598428755,1.2902,2360.9,2360.8,4.78216]
[1726598428953,1.65085466,2361.2,2361.0,2.54064]
[1726598429254,3.29705492,2361.7,2361.0,2.54064]
[1726598429255,0.4102,2361.5,2361.4,0.42337]
[1726598429649,1.7004,2361.5,2361.4,0.42337]
[1726598430061,1.2902,2361.5,2361.4,3.72337]
[1726598430358,0.4102,2361.7,2361.6,0.42333]
[1726598430559,1.7004,2361.7,2361.6,3.72333]
[1726598430860,1.65085466,2362.2,2361.7,1.05829]
[1726598431048,3.35125466,2362.2,2362.1,0.42324]
[1726598431252,5.95945315,2362.5,2362.2,0.42321]
[1726598431253,4.85865466,2362.5,2362.2,0.42321]
[1726598431551,2.94105466,2362.5,2362.4,3.72319]
[1726598431752,1.2902,2362.5,2362.4,6.93099]
[1726598431953,1.2902,2362.5,2362.4,3.2078]
[1726598432562,2.93755354,2362.5,2362.4,3.2078]
[1726598432859,2.93755354,2362.5,2362.4,3.63099]
[1726598433051,2.93762156,2362.5,2362.4,3.63099]
[1726598433361,2.93762156,2362.5,2362.4,3.2078]
[1726598433560,2.93762156,2362.5,2362.4,3.63099]
[1726598434263,2.93762156,2362.5,2362.0,3.2078]
[1726598434454,1.64742156,2362.3,2362.0,3.2078]
[1726598434657,1.2902,2362.1,2362.0,3.63106]
[1726598438661,1.64742156,2362.4,2362.3,0.42321]
[1726598438869,4.85522156,2362.5,2362.3,0.42321]
[1726598439060,2.93762156,2362.4,2362.3,0.42321]
[1726598439562,1.2902,2362.4,2362.3,0.42321]
[1726598443468,0.4102,2362.6,2362.5,0.42317]
[1726598443762,1.2902,2362.6,2362.5,0.42317]
[1726598444670,4.5902,2362.6,2361.9,0.3887]
[1726598444875,1.2902,2362.0,2361.9,0.81198]
[1726598447573,1.2902,2362.0,2361.9,1.87018]
[1726598448265,1.2902,2362.0,2361.9,0.42328]
[1726598448965,1.7056,2362.0,2361.9,0.42328]
[1726598450777,1.7056,2362.0,2361.9,1.48148]
[1726598450968,3.2078,2362.4,2362.3,0.42321]
[1726598451168,1.24137,2362.5,2362.3,0.42321]
[1726598451469,1.2902,2362.4,2362.3,0.42321]
[1726598452367,1.6859,2362.4,2362.3,0.42321]
[1726598453362,2.10909,2362.4,2362.2,0.42321]
[1726598453568,0.42321,2362.3,2362.1,0.42323]
[1726598453771,1.2902,2362.2,2362.1,0.42323]
[1726598453968,4.498,2362.2,2362.1,0.42323]
[1726598459673,4.92122,2362.2,2362.1,0.42323]
[1726598459977,10.26588,2362.2,2361.7,0.42331]
[1726598460175,4.498,2361.8,2361.5,1.67245551]
[1726598460372,0.8172,2361.7,2361.6,0.42333]
[1726598460581,0.86689,2361.6,2361.5,0.42333]
[1726598460777,0.42342,2361.1,2361.0,0.80556551]
[1726598461075,3.2078,2361.1,2361.0,0.42344]
[1726598461280,7.443,2361.1,2360.6,4.137]
[1726598461478,0.4058,2361.0,2360.9,0.42346]
[1726598462176,0.4058,2361.0,2360.9,4.65866]
[1726598462972,3.2078,2361.4,2361.3,0.42338]
[1726598463189,3.6194,2361.4,2361.3,0.42338]
[1726598463373,3.6194,2361.4,2361.2,0.4234]
[1726598463576,3.6194,2361.4,2361.1,0.42342]
[1726598463772,3.6194,2361.4,2361.2,0.42339]
[1726598463974,3.6194,2361.4,2361.1,0.42341]
[1726598464180,3.6194,2361.4,2361.2,0.4234]
[1726598464885,3.6194,2361.4,2360.9,3.3]
[1726598464886,3.6194,2361.4,2361.3,0.42338]
[1726598466681,3.6194,2361.4,2361.2,0.42339]
[1726598466878,3.6194,2361.4,2361.3,0.42338]
[1726598467882,3.6194,2361.4,2361.2,0.42339]
[1726598468179,3.6194,2361.4,2361.3,0.42338]
[1726598468484,3.6194,2361.4,2361.2,0.42339]
[1726598468781,3.6194,2361.4,2361.3,0.42338]
[1726598468982,3.6194,2361.4,2361.1,0.42341]
[1726598469178,2.05362156,2361.3,2361.1,0.42341]
[1726598469385,0.4062,2361.3,2361.2,0.4234]
[1726598469678,5.26682156,2361.4,2361.3,0.42338]
[1726598470070,3.6194,2361.4,2361.3,0.42338]
[1726598470480,5.26682156,2361.4,2361.3,0.42338]
[1726598470877,0.42339,2361.3,2361.1,0.42341]
[1726598471179,2.07081156,2361.3,2361.1,0.42341]
[1726598471387,4.2352,2361.2,2361.1,0.42341]
[1726598471677,4.2352,2361.2,2360.7,8.03264016]
[1726598471881,0.42344,2361.0,2360.7,0.42349]
[1726598472089,3.2078,2360.8,2360.5,0.42352]
[1726598472282,4.85522156,2360.8,2360.7,0.42349]
[1726598472890,5.27869156,2360.8,2360.6,0.4235]
[1726598473080,1.64742156,2360.7,2360.5,0.42352]
[1726598473283,4.94742156,2360.7,2360.0,5.16460551]
[1726598473486,3.2078,2360.5,2360.4,0.42353]
[1726598473888,0.4016,2360.6,2360.5,0.42353]
[1726598476487,3.603,2360.9,2360.8,0.42347]
[1726598476685,0.3952,2360.9,2360.8,0.42347]
[1726598477490,4.85522156,2361.2,2361.1,0.42342]
[1726598477993,3.2078,2361.2,2361.1,0.42342]
[1726598478691,3.2078,2361.2,2360.9,0.4221]
[1726598479085,3.2078,2361.2,2361.1,0.42342]
[1726598480493,3.2078,2361.2,2360.9,0.4221]
[1726598480788,3.2078,2361.2,2361.0,0.42342]
[1726598481385,2.86201156,2361.3,2361.1,0.42342]
[1726598481580,2.86201156,2361.3,2360.9,0.4221]
[1726598481581,2.43862156,2361.3,2360.9,0.4221]
[1726598481786,2.86201156,2361.3,2361.1,0.42341]
[1726598482486,2.43862156,2361.3,2360.9,0.4221]
[1726598482688,0.4013,2361.3,2361.2,3.7234]
[1726598482997,1.64742156,2361.5,2361.4,0.42337]
[1726598483195,0.4051,2361.5,2361.4,0.42337]
[1726598483393,0.82845,2361.5,2361.3,0.42337]
[1726598483690,4.03625,2361.5,2361.3,0.42337]
[1726598483890,5.68367156,2361.5,2361.3,0.42337]
[1726598484095,5.68367156,2361.5,2361.2,0.4234]
[1726598484096,5.26032156,2361.5,2361.2,0.4234]
[1726598484397,0.42341,2361.2,2361.0,0.42344]
[1726598484691,3.6167,2361.1,2361.0,0.42344]
[1726598485285,0.42345,2361.0,2360.5,5.28828002]
[1726598485490,0.3977,2361.0,2360.9,0.42345]
[1726598485888,5.05634,2361.0,2360.9,0.42345]
[1726598486084,4.6329,2361.0,2360.5,4.26661]
[1726598486298,0.3977,2361.0,2360.5,4.26661]
[1726598486493,0.82115,2361.0,2360.5,4.26661]
[1726598487099,0.82115,2361.0,2360.7,0.42349]
[1726598487100,3.2078,2360.8,2360.7,0.42349]
[1726598487288,3.2078,2360.8,2360.4,1.47403]
[1726598487289,3.63127,2360.8,2360.6,0.4235]
[1726598487486,3.63127,2360.8,2360.7,0.42349]
[1726598487794,7.86727,2360.8,2360.7,0.42349]
[1726598487986,7.86727,2360.8,2360.6,0.4235]
[1726598488183,3.63127,2360.8,2360.6,0.4235]
[1726598488383,4.236,2360.7,2360.4,0.4152]
[1726598488592,0.4031,2360.7,2360.6,0.4235]
[1726598488800,4.6391,2360.7,2360.6,0.4235]
[1726598490299,3.2078,2360.8,2360.7,0.42349]
[1726598490493,4.85522156,2360.8,2360.7,0.42349]
[1726598490891,3.2078,2360.8,2360.7,0.42349]
[1726598491095,4.85522156,2360.8,2360.7,0.42349]
[1726598491294,3.2078,2360.8,2360.7,0.42349]
[1726598491897,2.07542156,2360.9,2360.8,0.42347]
[1726598492207,1.64742156,2360.9,2360.8,0.42347]
[1726598492694,5.88342156,2360.9,2360.4,3.623]
[1726598492892,5.88342156,2360.9,2360.6,0.4235]
[1726598492893,5.27871156,2360.8,2360.6,0.4235]
[1726598493087,0.42349,2360.7,2360.6,0.4235]
[1726598493286,5.27871156,2360.8,2360.7,0.42349]
[1726598493693,9.51471156,2360.8,2360.7,0.42349]
[1726598494890,9.09122156,2360.8,2360.7,0.42349]
[1726598496189,9.51469156,2360.8,2360.7,0.42349]
[1726598496396,0.4235,2360.7,2360.6,0.4235]
[1726598496608,2.49034333,2360.7,2360.6,0.4235]
[1726598496905,0.42352,2360.6,2360.5,0.42352]
[1726598497097,2.48869385,2360.6,2360.5,0.42352]
[1726598497604,2.06517385,2360.6,2360.1,4.01336551]
[1726598497901,5.67731385,2360.5,2360.4,0.42353]
[1726598498104,4.02884,2360.5,2360.4,0.42353]
[1726598498497,5.67870499,2360.5,2360.4,0.42353]
[1726598499203,4.02884,2360.5,2360.4,0.42353]
[1726598499597,3.6053,2360.5,2360.4,0.42353]
[1726598500500,0.3975,2360.5,2360.4,0.42353]
[1726598500999,0.82103,2360.5,2360.4,0.42353]
[1726598502103,3.02235252,2360.5,2360.4,0.42353]
[1726598502603,0.82103,2360.5,2360.4,0.42353]
[1726598503102,3.02235252,2360.5,2360.4,0.42353]
[1726598503905,2.59882252,2360.5,2360.4,0.42353]
[1726598504203,2.20132252,2360.5,2360.4,1.4824]
[1726598504403,2.20132252,2360.5,2360.4,4.7824]
[1726598504797,2.20132252,2360.5,2360.4,0.81663]
[1726598505198,3.16835315,2360.6,2360.5,0.42353]
[1726598507398,0.84021,2360.6,2360.5,0.42353]
[1726598507593,6.50485492,2360.8,2360.7,0.42349]
[1726598507797,0.4235,2360.7,2360.6,0.4235]
[1726598509004,3.29705492,2360.8,2360.7,0.42349]
[1726598509311,3.29705492,2361.1,2361.0,0.42344]
[1726598509609,0.42342,2361.1,2361.0,0.42344]
[1726598511109,3.72047492,2361.1,2361.0,0.42344]
[1726598511797,0.42347,2360.9,2360.8,0.42345]
[1726598512006,0.42347,2360.9,2360.7,0.42348]
[1726598512007,0.4235,2360.8,2360.7,0.42348]
[1726598512308,0.42351,2360.7,2360.6,0.4235]
[1726598512506,0.42353,2360.6,2360.5,0.42351]
[1726598512904,4.65951,2360.6,2360.5,0.42351]
[1726598513303,0.42351,2360.6,2360.5,0.42351]
[1726598513808,3.72055492,2360.7,2360.6,0.42351]
[1726598514011,0.4235,2360.7,2360.6,0.42351]
[1726598514207,0.4235,2360.7,2360.3,1.05891]
[1726598514208,4.94104492,2360.8,2360.7,0.42349]
[1726598515598,4.94104492,2360.8,2360.5,0.42351]
[1726598515599,0.42352,2360.6,2360.5,0.42351]
[1726598515802,3.63132,2360.6,2360.5,0.42351]
[1726598518517,7.86732,2360.6,2360.5,0.42351]
[1726598518815,11.17485958,2360.6,2360.5,0.42351]
[1726598521711,7.86732,2360.6,2360.5,0.42351]
[1726598522310,3.30753958,2360.7,2360.6,1.48229]
[1726598522516,7.60387323,2361.0,2360.8,0.42347]
[1726598522517,3.30753958,2360.9,2360.8,0.42347]
[1726598522717,3.71283958,2360.9,2360.8,0.42347]
[1726598522916,4.13629958,2360.9,2360.8,0.42347]
[1726598525715,0.82876,2360.9,2360.8,0.42347]
[1726598525918,0.42347,2360.8,2360.5,1.39668787]
[1726598526125,3.73259873,2360.8,2360.7,0.42348]
[1726598528317,0.42347,2360.8,2360.7,0.42348]
[1726598528716,3.73374963,2360.8,2360.7,0.42348]
[1726598529416,0.42347,2360.8,2360.7,0.42348]
[1726598530018,4.27003408,2360.8,2360.7,0.42348]
[1726598531920,3.84656408,2360.8,2360.7,0.42348]
[1726598532427,4.27003408,2360.8,2360.7,0.42348]
[1726598532826,3.84656408,2360.8,2360.7,0.42348]
[1726598533022,3.84656408,2360.8,2360.7,1.48222]
[1726598533319,0.4053,2360.9,2360.7,1.48222]
[1726598533320,4.25186408,2360.9,2360.8,1.48216]
[1726598533532,4.25186408,2360.9,2360.8,0.42347]
[1726598533830,4.25186408,2360.9,2360.8,0.81837]
[1726598534625,0.4053,2360.9,2360.8,1.38070274]
[1726598534827,4.25186408,2360.9,2360.8,1.38070587]
[1726598535027,0.4053,2360.9,2360.8,0.81837]
[1726598535331,4.25186408,2360.9,2360.8,0.81837]
[1726598536030,0.4053,2360.9,2360.8,0.81837]
[1726598536436,7.47780408,2361.0,2360.9,0.42346]
[1726598536632,7.05436408,2361.0,2360.9,0.42346]
[1726598536938,7.05436408,2361.0,2360.9,1.48211]
[1726598537129,3.2078,2361.0,2360.9,1.48211]
[1726598537324,6.52265956,2361.0,2360.9,2.04444097]
[1726598537833,3.31485956,2361.0,2360.9,7.33829097]
[1726598538022,4.39607323,2361.3,2361.1,1.05856]
[1726598538023,3.31485956,2361.2,2361.1,1.05856]
[1726598538223,6.52265956,2361.4,2361.2,1.05851]
[1726598538428,2.7608201,2361.5,2361.4,1.05842]
[1726598538622,2.7608201,2361.5,2361.4,2.04412097]
[1726598538827,2.7608201,2361.5,2361.4,7.17802827]
[1726598539245,2.7608201,2361.6,2361.5,2.54011]
[1726598539424,2.7608201,2361.6,2361.5,10.05455088]
[1726598539425,1.6555594,2361.6,2361.5,10.05455088]
[1726598539740,1.6555594,2361.6,2361.5,17.53603945]
[1726598539923,3.6168,2362.1,2361.5,17.53603945]
[1726598539924,2.20741254,2361.7,2361.5,16.05430945]
[1726598540125,2.7608201,2361.8,2361.7,0.42331]
[1726598540532,6.9168,2362.1,2361.5,1.05838]
[1726598540533,2.75727531,2361.9,2361.8,0.4233]
[1726598540836,0.42327,2362.0,2361.8,0.4233]
[1726598541230,2.75760671,2361.9,2361.8,0.4233]
[1726598541431,2.75754197,2361.9,2361.8,0.4233]
[1726598541634,3.3,2361.9,2361.8,0.4233]
[1726598541830,6.05618071,2361.9,2361.4,4.59528442]
[1726598542035,1.65376146,2361.5,2361.4,5.01865442]
[1726598542534,1.65376146,2361.6,2361.5,0.42335]
[1726598543137,1.65376146,2361.6,2361.5,1.48173]
[1726598544428,1.65253656,2361.7,2361.5,5.29278]
[1726598544634,1.65253656,2361.7,2361.5,1.05838]
[1726598544835,1.65253656,2361.7,2361.6,0.42333]
[1726598545030,1.65253656,2361.7,2361.6,1.48166]
[1726598545234,2.20501528,2361.9,2361.6,1.48166]
[1726598545235,1.65253656,2361.8,2361.7,0.42331]
[1726598545435,2.20501528,2362.0,2361.8,0.4233]
[1726598545436,1.65253656,2361.9,2361.8,0.4233]
[1726598545642,2.20501528,2362.0,2361.9,0.42328]
[1726598546235,3.44644657,2362.1,2361.9,0.42327]
[1726598546842,3.44644657,2362.1,2361.7,3.5958]
[1726598547041,1.65117392,2361.9,2361.8,0.4233]
[1726598547538,1.65117392,2361.9,2361.8,4.6569]
[1726598547736,3.44644657,2362.1,2361.9,0.42328]
[1726598547737,1.65117392,2362.0,2361.9,0.42328]
[1726598548535,1.65117392,2362.1,2362.0,0.42326]
[1726598548734,2.20220657,2362.2,2362.1,0.42324]
[1726598548735,1.65117392,2362.2,2362.1,0.42324]
[1726598548934,2.05407392,2362.3,2362.2,0.42322]
[1726598549533,0.4029,2362.3,2362.2,0.42322]
[1726598550043,2.60510657,2362.3,2361.7,4.59568553]
[1726598550238,1.64923243,2362.1,2362.0,0.42325]
[1726598550438,2.07247243,2362.2,2362.0,0.42325]
[1726598550739,2.07253243,2362.1,2362.0,0.42325]
[1726598551040,0.84654,2362.1,2362.0,0.42325]
[1726598551345,2.49577243,2362.1,2362.0,0.42326]
[1726598551637,0.4233,2362.1,2362.0,0.42326]
[1726598552541,2.05213243,2362.3,2361.9,1.05819]
[1726598552748,2.05213243,2362.3,2362.2,0.42322]
[1726598553249,2.05213243,2362.3,2362.1,0.42323]
[1726598553250,3.15908071,2362.3,2362.1,0.42323]
[1726598553549,3.17941071,2362.2,2362.1,0.42323]
[1726598553738,0.42323,2362.2,2362.1,0.42323]
[1726598555840,0.42325,2362.1,2362.0,0.42324]
[1726598556041,4.14855,2362.1,2362.0,0.42324]
[1726598556249,0.42328,2362.0,2361.9,0.42327]
[1726598556436,3.01263095,2362.0,2361.9,0.42327]
[1726598556942,0.42329,2361.9,2361.8,0.42328]
[1726598557147,2.46317104,2361.9,2361.8,0.42328]
[1726598557346,0.42332,2361.8,2361.7,0.4233]
[1726598557542,0.42333,2361.7,2361.6,0.42331]
[1726598557748,2.49726014,2361.7,2361.6,0.42331]
[1726598558440,3.04678095,2361.7,2361.6,0.42331]
[1726598558641,0.85173,2361.7,2361.6,0.42331]
[1726598559245,0.4284,2361.7,2361.6,0.42331]
[1726598559450,2.07392932,2361.7,2361.6,0.42331]
[1726598560145,0.85171,2361.7,2361.6,0.42331]
[1726598561244,0.4284,2361.7,2361.6,0.42331]
[1726598562548,0.85171,2361.7,2361.6,0.42331]
[1726598564554,0.4284,2361.7,2361.6,0.42331]
[1726598567150,0.4284,2361.7,2361.6,0.82331]
[1726598568257,2.07392932,2361.7,2361.6,0.82331]
[1726598569352,0.4284,2361.7,2361.6,0.82331]
[1726598569852,2.07613026,2361.7,2361.6,0.82331]
[1726598570050,2.62345095,2361.7,2361.6,0.82331]
[1726598572745,0.4284,2361.7,2361.6,0.82331]
[1726598573344,2.62512696,2361.7,2361.6,0.82331]
[1726598573550,0.4284,2361.7,2361.6,0.82331]
[1726598574353,2.75618071,2361.8,2361.7,0.42331]
[1726598574549,1.22378,2361.9,2361.8,0.4233]
[1726598574948,2.74774317,2361.9,2361.8,5.29184]
[1726598575148,1.64873584,2362.0,2361.9,0.42328]
[1726598575352,1.64873584,2362.0,2361.8,10.4505484]
[1726598575353,1.64873584,2362.1,2362.0,0.42326]
[1726598575550,2.19831445,2362.2,2362.1,0.42324]
[1726598576261,2.19831445,2362.2,2361.8,1.39354091]
[1726598576559,2.19831445,2362.2,2362.0,0.42326]
[1726598576560,2.62154445,2362.2,2362.0,0.42326]
[1726598576745,2.62154445,2362.2,2362.1,0.42324]
[1726598577656,0.42323,2362.2,2362.1,0.42324]
[1726598578155,0.42323,2362.2,2362.0,0.42325]
[1726598578345,2.20036685,2362.1,2362.0,0.42325]
[1726598579155,2.20036685,2362.1,2362.0,0.83875]
[1726598579662,2.74774317,2362.2,2362.1,0.42324]